bitfinex/quotes_BTCUSD_20250617
["timestamp","ask_amount","ask_price","bid_price","bid_amount"]
[1750127485251,0.5937487,106740.0,106730.0,0.96579637]
[1750127485487,0.56983921,106740.0,106730.0,1.1531851]
[1750127485708,0.24144364,106740.0,106730.0,1.18129304]
[1750127485922,0.24500785,106740.0,106730.0,0.96679637]
[1750127486142,0.26325271,106740.0,106730.0,0.96679637]
[1750127486360,0.25388424,106740.0,106730.0,0.96679637]
[1750127486584,0.26325271,106740.0,106730.0,0.97616563]
[1750127486798,0.26325271,106740.0,106730.0,0.96679637]
[1750127487243,0.27262091,106740.0,106730.0,1.17292352]
[1750127487463,0.26325271,106740.0,106730.0,0.96679637]
[1750127487682,0.25625271,106740.0,106730.0,0.96579637]
[1750127487889,0.26125271,106740.0,106730.0,0.96679637]
[1750127488313,0.26125271,106740.0,106730.0,1.17292361]
[1750127488573,0.07731767,106740.0,106730.0,1.1916616]
[1750127488795,0.26468885,106740.0,106730.0,1.17292361]
[1750127489013,0.25258424,106740.0,106730.0,0.96679637]
[1750127489231,0.25258424,106740.0,106730.0,0.9761658]
[1750127489449,0.25258424,106740.0,106730.0,1.18229295]
[1750127489450,0.26195262,106740.0,106730.0,1.18229295]
[1750127489662,0.26195262,106740.0,106730.0,1.17292387]
[1750127489852,0.26195262,106740.0,106730.0,0.96679637]
[1750127490123,0.26015262,106740.0,106730.0,1.1541851]
[1750127490367,0.26015262,106740.0,106730.0,1.16355453]
[1750127490581,0.26015262,106740.0,106730.0,1.17292387]
[1750127490795,0.26015262,106740.0,106730.0,1.18229313]
[1750127491023,0.26015262,106740.0,106730.0,0.9761658]
[1750127491232,0.25078424,106740.0,106730.0,0.96679637]
[1750127492103,0.0358,106740.0,106730.0,1.18229234]
[1750127492322,0.03310426,106740.0,106730.0,1.39031171]
[1750127492542,0.03603201,106740.0,106730.0,1.54995171]
[1750127492931,0.04540039,106740.0,106730.0,1.34193234]
[1750127493609,0.03310426,106740.0,106730.0,1.34193234]
[1750127493819,0.04540022,106740.0,106730.0,1.34193234]
[1750127494427,0.04540022,106740.0,106730.0,1.33256352]
[1750127494640,0.23277193,106740.0,106730.0,1.33256352]
[1750127494847,0.22984418,106740.0,106730.0,1.33256352]
[1750127495056,0.22047615,106740.0,106730.0,1.16355444]
[1750127495270,0.23667615,106740.0,106730.0,1.13580571]
[1750127495491,0.25542661,106740.0,106730.0,1.13580571]
[1750127495718,0.47874598,106740.0,106730.0,0.96679637]
[1750127495934,0.4693776,106740.0,106730.0,1.12643637]
[1750127496385,0.4693776,106740.0,106730.0,0.96679637]
[1750127496597,0.4693776,106740.0,106730.0,1.12631637]
[1750127497008,0.4693776,106740.0,106730.0,1.1356458]
[1750127497438,0.4693776,106740.0,106730.0,1.33240387]
[1750127497439,0.03311858,106740.0,106730.0,1.33240387]
[1750127497646,0.05185437,106740.0,106730.0,1.57416114]
[1750127498112,0.03311858,106740.0,106730.0,1.6859029]
[1750127498323,0.03311858,106740.0,106730.0,1.47788353]
[1750127498324,0.005,106740.0,106730.0,1.47788353]
[1750127498538,0.005,106740.0,106730.0,1.6859029]
[1750127498965,0.005,106740.0,106730.0,1.6849029]
[1750127499184,0.002,106740.0,106730.0,1.6849029]
[1750127499400,0.002,106740.0,106730.0,1.6695629]
[1750127499606,0.002,106740.0,106730.0,1.5099229]
[1750127499816,0.002,106740.0,106730.0,1.6695229]
[1750127500282,0.001,106740.0,106730.0,1.6695229]
[1750127500708,0.001,106740.0,106730.0,1.6846229]
[1750127503386,0.37433211,106760.0,106750.0,0.2154556]
[1750127503606,0.38369847,106760.0,106750.0,0.3747756]
[1750127503823,0.39013211,106760.0,106750.0,0.3747756]
[1750127504079,0.39949847,106760.0,106750.0,0.3747756]
[1750127504295,0.39949847,106760.0,106750.0,0.2154556]
[1750127504521,0.40886492,106760.0,106750.0,0.3747356]
[1750127504965,0.39949847,106760.0,106750.0,0.3747356]
[1750127505178,0.40886501,106760.0,106750.0,0.3747356]
[1750127505385,0.41823163,106760.0,106750.0,0.3747356]
[1750127505595,0.39949847,106760.0,106750.0,0.3747356]
[1750127506041,0.40886501,106760.0,106750.0,0.3747356]
[1750127506255,0.42123163,106760.0,106750.0,0.2154556]
[1750127506458,0.42123163,106760.0,106750.0,0.3747356]
[1750127506670,0.42123233,106760.0,106750.0,0.3747356]
[1750127507286,0.42123303,106760.0,106750.0,0.2154556]
[1750127507489,0.42123303,106760.0,106750.0,0.3747356]
[1750127508365,0.3931329,106760.0,106750.0,0.3747356]
[1750127508812,0.39313246,106760.0,106750.0,0.3747356]
[1750127509075,0.3931329,106760.0,106750.0,0.35600121]
[1750127509291,0.80722177,106760.0,106750.0,0.19672121]
[1750127509503,0.050535,106750.0,106740.0,0.21546102]
[1750127509727,0.0440945,106750.0,106740.0,0.38410896]
[1750127509935,0.07219639,106750.0,106740.0,0.38410896]
[1750127510789,0.07219639,106750.0,106740.0,0.38510896]
[1750127511008,0.06282889,106750.0,106740.0,0.38510896]
[1750127511215,0.07219639,106750.0,106740.0,0.38510896]
[1750127511428,0.37413334,106760.0,106750.0,0.20608836]
[1750127511652,0.57726942,106760.0,106750.0,0.19672112]
[1750127511860,0.57726942,106760.0,106750.0,0.20608853]
[1750127512280,0.56790288,106760.0,106750.0,0.19672112]
[1750127512494,0.55853608,106760.0,106750.0,0.18735362]
[1750127512925,0.56053608,106760.0,106750.0,0.1967213]
[1750127513352,0.56153608,106760.0,106750.0,0.1967213]
[1750127513627,0.00936794,106740.0,106730.0,1.16255427]
[1750127513856,0.04430452,106740.0,106730.0,1.34990169]
[1750127514073,0.24737623,106740.0,106730.0,1.33116379]
[1750127514305,0.24737623,106740.0,106730.0,1.34053296]
[1750127514750,0.24737623,106740.0,106730.0,0.96579637]
[1750127514973,0.24737623,106740.0,106730.0,1.33116379]
[1750127515200,0.43665902,106740.0,106730.0,0.96579637]
[1750127515686,0.45119987,106740.0,106730.0,0.96579637]
[1750127516180,0.83455987,106740.0,106730.0,0.96579637]
[1750127516411,1.04357924,106740.0,106730.0,0.96879637]
[1750127516648,1.139821,106740.0,106730.0,0.96579637]
[1750127516887,0.93080163,106740.0,106730.0,0.96579637]
[1750127517360,0.93080163,106740.0,106730.0,0.96679637]
[1750127517582,1.16740403,106740.0,106730.0,0.96779637]
[1750127518079,1.18967826,106740.0,106730.0,0.96779637]
[1750127518313,1.19367826,106740.0,106730.0,0.96879637]
[1750127518546,1.19367826,106740.0,106730.0,0.96679637]
[1750127519018,1.22182226,106740.0,106730.0,0.96679637]
[1750127519242,0.80778352,106740.0,106730.0,0.96679637]
[1750127519464,1.22382226,106740.0,106730.0,0.96679637]
[1750127519681,1.21982226,106740.0,106730.0,0.96579637]
[1750127519906,1.21782226,106740.0,106730.0,0.96579637]
[1750127520140,1.22182226,106740.0,106730.0,0.96679637]
[1750127520379,1.31797148,106740.0,106730.0,0.96679637]
[1750127521546,1.27861148,106740.0,106730.0,0.96679637]
[1750127521765,1.38534226,106740.0,106730.0,0.96679637]
[1750127521991,1.18246226,106740.0,106730.0,0.96679637]
[1750127522235,0.97444289,106740.0,106730.0,0.96679637]
[1750127522454,1.17736289,106740.0,106730.0,0.96679637]
[1750127523196,1.01780289,106740.0,106730.0,0.96679637]
[1750127523432,0.95216866,106740.0,106730.0,0.96679637]
[1750127523655,0.78750929,106740.0,106730.0,0.96679637]
[1750127523901,0.93244844,106740.0,106730.0,0.96679637]
[1750127524120,1.15500866,106740.0,106730.0,0.96679637]
[1750127525032,0.8559269,106740.0,106730.0,0.96679637]
[1750127525250,1.0587669,106740.0,106730.0,0.96679637]
[1750127525918,1.0587269,106740.0,106730.0,0.96679637]
[1750127526143,0.85070753,106740.0,106730.0,0.96679637]
[1750127526357,1.0587269,106740.0,106730.0,0.96679637]
[1750127527431,0.85070753,106740.0,106730.0,0.96679637]
[1750127527638,1.0587269,106740.0,106730.0,0.96679637]
[1750127528067,0.64790753,106740.0,106730.0,0.96679637]
[1750127528305,1.0588469,106740.0,106730.0,0.96679637]
[1750127528513,0.8992869,106740.0,106730.0,0.96679637]
[1750127528721,1.0306629,106740.0,106730.0,0.96679637]
[1750127531410,1.0306629,106740.0,106730.0,1.18229234]
[1750127531411,0.3642,106740.0,106730.0,1.18229234]
[1750127531638,0.37610373,106740.0,106730.0,1.41714289]
[1750127531863,0.38547211,106740.0,106730.0,1.21849251]
[1750127532080,0.38547211,106740.0,106730.0,1.22786142]
[1750127532291,0.38147211,106740.0,106730.0,1.22786142]
[1750127532503,0.38147211,106740.0,106730.0,1.22103024]
[1750127532716,0.37210373,106740.0,106730.0,1.22103024]
[1750127532925,0.36810373,106740.0,106730.0,1.23573024]
[1750127533143,0.37747193,106740.0,106730.0,1.23573024]
[1750127533366,0.38347193,106740.0,106730.0,1.23673024]
[1750127533574,0.38747202,106740.0,106730.0,1.23673024]
[1750127533825,0.37810373,106740.0,106730.0,1.23673024]
[1750127534046,0.37747193,106740.0,106730.0,1.23573024]
[1750127534259,0.37847193,106740.0,106730.0,1.23573024]
[1750127534480,0.38784031,106740.0,106730.0,1.23573024]
[1750127534970,0.003,106740.0,106730.0,1.44374961]
[1750127535189,0.003,106740.0,106730.0,1.45944961]
[1750127535425,0.01236785,106740.0,106730.0,1.45944961]
[1750127535664,0.01236785,106740.0,106730.0,1.25143024]
[1750127536082,0.003,106740.0,106730.0,1.25143024]
[1750127536294,0.001,106740.0,106730.0,1.45944961]
[1750127536511,0.87076903,106750.0,106740.0,0.21547562]
[1750127536780,0.86140153,106750.0,106740.0,0.21547562]
[1750127537029,0.34,106750.0,106740.0,0.59909499]
[1750127537263,0.34,106750.0,106740.0,0.71143675]
[1750127537918,0.35036689,106750.0,106740.0,0.71143675]
[1750127538185,0.36073395,106750.0,106740.0,0.71143675]
[1750127539369,0.36073395,106750.0,106740.0,0.50341738]
[1750127539578,0.36073386,106750.0,106740.0,0.50341738]
[1750127539819,0.35136689,106750.0,106740.0,0.50341738]
[1750127540066,0.37010092,106750.0,106740.0,0.50341738]
[1750127540723,0.79727523,106750.0,106730.0,1.1682851]
[1750127540953,0.01873649,106740.0,106730.0,1.18129252]
[1750127541174,0.2361238,106740.0,106730.0,1.35050134]
[1750127541384,0.02810443,106740.0,106730.0,1.35050134]
[1750127541596,0.01873614,106740.0,106730.0,1.35050134]
[1750127542047,0.00936794,106740.0,106730.0,1.35050134]
[1750127542263,0.39253456,106750.0,106740.0,0.20610768]
[1750127542476,0.41126965,106750.0,106740.0,0.21547562]
[1750127542965,0.42063733,106750.0,106740.0,0.20610768]
[1750127543171,0.58725639,106750.0,106740.0,0.36586785]
[1750127543618,0.58825639,106750.0,106740.0,0.38460417]
[1750127544054,0.341,106750.0,106740.0,0.60862354]
[1750127544300,0.0197343,106750.0,106740.0,0.63459148]
[1750127544516,0.03946921,106750.0,106740.0,0.42657211]
[1750127544770,0.02910171,106750.0,106740.0,0.40997211]
[1750127544981,0.03010171,106750.0,106740.0,0.40997211]
[1750127545203,0.03010171,106750.0,106740.0,0.23421211]
[1750127545391,0.03946921,106750.0,106740.0,0.22484417]
[1750127545603,0.04883689,106750.0,106740.0,0.38440417]
[1750127545816,0.04883689,106750.0,106740.0,0.18737118]
[1750127545817,0.23619051,106750.0,106740.0,0.18737118]
[1750127546029,0.25025621,106750.0,106740.0,0.36566803]
[1750127546239,0.0187365,106740.0,106730.0,1.19639261]
[1750127546453,0.02810497,106740.0,106730.0,1.19066143]
[1750127546662,0.02810497,106740.0,106730.0,1.35018143]
[1750127547304,0.02810453,106740.0,106730.0,1.35018143]
[1750127547545,0.02910453,106740.0,106730.0,1.35218143]
[1750127547745,0.03847238,106740.0,106730.0,1.35318143]
[1750127548623,0.04784076,106740.0,106730.0,1.35318143]
[1750127548837,0.04784076,106740.0,106730.0,1.19366143]
[1750127549048,0.04784076,106740.0,106730.0,1.35306143]
[1750127549710,0.01973597,106740.0,106730.0,1.35306143]
[1750127549955,0.01973597,106740.0,106730.0,1.36906143]
[1750127550176,0.02910409,106740.0,106730.0,1.36906143]
[1750127550399,0.03847238,106740.0,106730.0,1.35306143]
[1750127550614,0.05727929,106740.0,106730.0,1.35306143]
[1750127550826,0.06664758,106740.0,106730.0,1.35306143]
[1750127551271,0.06664749,106740.0,106730.0,1.35306143]
[1750127551491,0.0291752,106740.0,106730.0,1.38446143]
[1750127551715,0.0291752,106740.0,106730.0,1.74142213]
[1750127551947,0.001,106740.0,106730.0,1.96142213]
[1750127552625,0.001,106740.0,106730.0,1.54130319]
[1750127552856,0.001,106740.0,106730.0,1.70078319]
[1750127554582,0.001,106740.0,106730.0,1.96150213]
[1750127555754,0.001,106740.0,106730.0,1.80202213]
[1750127555976,0.001,106740.0,106730.0,1.96158213]
[1750127558191,0.001,106740.0,106730.0,1.96134213]
[1750127559285,0.001,106740.0,106730.0,1.80202213]
[1750127559510,0.001,106740.0,106730.0,1.96130213]
[1750127559977,0.001,106740.0,106730.0,1.70058319]
[1750127561474,0.001,106740.0,106730.0,1.52490319]
[1750127561733,0.001,106740.0,106730.0,1.70418319]
[1750127561947,0.001,106740.0,106730.0,1.72078319]
[1750127563854,0.001,106740.0,106730.0,1.98150213]
[1750127565944,0.001,106740.0,106730.0,2.00150213]
[1750127566156,0.001,106740.0,106730.0,2.00050213]
[1750127566374,0.38419873,106760.0,106750.0,0.2354556]
[1750127566617,0.40039873,106760.0,106750.0,0.3947356]
[1750127567037,0.03483228,106760.0,106750.0,0.3947356]
[1750127567886,0.03583228,106760.0,106750.0,0.2374556]
[1750127568091,0.04519864,106760.0,106750.0,0.3967356]
[1750127568308,0.03583228,106760.0,106750.0,0.3967356]
[1750127569170,0.02646601,106760.0,106750.0,0.3967356]
[1750127569388,0.0171,106760.0,106750.0,0.3967356]
[1750127569648,0.001,106760.0,106750.0,0.60526788]
[1750127570093,0.001,106760.0,106750.0,0.3967356]
[1750127570734,0.001,106760.0,106750.0,0.4127356]
[1750127571160,0.001,106760.0,106750.0,0.49297736]
[1750127571376,0.001,106760.0,106750.0,0.71700964]
[1750127572432,0.001,106760.0,106750.0,0.72639831]
[1750127572667,0.001,106760.0,106750.0,0.56711831]
[1750127572922,0.001,106760.0,106750.0,0.72639831]
[1750127576072,0.001,106760.0,106750.0,0.94209831]
[1750127576300,0.001,106760.0,106750.0,0.96209831]
[1750127577051,0.001,106760.0,106750.0,1.01209831]
[1750127577280,0.43316705,106780.0,106770.0,0.46661524]
[1750127577504,0.43316705,106780.0,106770.0,1.15916156]
[1750127578399,0.43316705,106780.0,106770.0,0.99992156]
[1750127578618,0.43321419,106780.0,106770.0,1.20252156]
[1750127579078,0.43321419,106780.0,106770.0,1.04591822]
[1750127579332,0.43321419,106780.0,106770.0,0.582857]
[1750127579569,0.43321419,106780.0,106770.0,0.311657]
[1750127579787,0.43321419,106780.0,106770.0,0.470897]
[1750127580015,0.43321419,106780.0,106770.0,0.473897]
[1750127580237,0.46451419,106780.0,106770.0,0.473857]
[1750127580477,0.46451419,106780.0,106770.0,0.475857]
[1750127580711,0.46451419,106780.0,106770.0,0.473857]
[1750127581377,0.46451419,106780.0,106770.0,0.470857]
[1750127581719,0.46451419,106780.0,106770.0,0.472857]
[1750127582159,0.43321419,106780.0,106770.0,0.472857]
[1750127582586,0.44871419,106780.0,106770.0,0.313657]
[1750127582805,0.46491419,106780.0,106770.0,0.313657]
[1750127583020,0.46491419,106780.0,106770.0,0.472857]
[1750127583234,0.47427845,106780.0,106770.0,0.472857]
[1750127583456,0.68967378,106780.0,106770.0,0.18931853]
[1750127583688,0.68967378,106780.0,106770.0,0.36724994]
[1750127583936,1.28594707,106780.0,106770.0,0.002]
[1750127584154,1.42554883,106780.0,106770.0,0.002]
[1750127584637,1.68089805,106780.0,106770.0,0.002]
[1750127584850,0.06049943,106760.0,106750.0,0.36528827]
[1750127585070,0.05405973,106760.0,106750.0,0.21545578]
[1750127585281,0.07923206,106760.0,106750.0,0.38402284]
[1750127585489,0.26012952,106760.0,106750.0,0.20608871]
[1750127585763,0.24783586,106760.0,106750.0,0.36528871]
[1750127585981,0.21542478,106760.0,106740.0,0.19672415]
[1750127586195,0.05113448,106750.0,106740.0,0.21546038]
[1750127586418,0.06050189,106750.0,106740.0,0.37466038]
[1750127586640,0.25722301,106750.0,106740.0,0.21546108]
[1750127586867,0.07923707,106750.0,106740.0,0.38402911]
[1750127587084,0.08216462,106750.0,106740.0,0.38402911]
[1750127587295,0.08216462,106750.0,106740.0,0.39339705]
[1750127587514,0.07279694,106750.0,106740.0,0.39339705]
[1750127587706,0.07279694,106750.0,106740.0,0.39439705]
[1750127588190,0.06342944,106750.0,106740.0,0.39439705]
[1750127588410,0.05113404,106750.0,106740.0,0.39439705]
[1750127588637,0.06342892,106750.0,106740.0,0.39639705]
[1750127588855,0.05406159,106750.0,106740.0,0.39639705]
[1750127589083,0.0166,106750.0,106740.0,0.39639705]
[1750127589297,0.02596697,106750.0,106740.0,0.39639705]
[1750127589535,0.03533403,106750.0,106740.0,0.39639705]
[1750127589750,0.06050118,106750.0,106740.0,0.39639705]
[1750127589971,0.04176697,106750.0,106740.0,0.39639705]
[1750127590191,0.0324,106750.0,106740.0,0.39639705]
[1750127591103,0.0166,106750.0,106740.0,0.39639705]
[1750127591521,0.02596689,106750.0,106740.0,0.39639705]
[1750127591749,0.04176689,106750.0,106740.0,0.39639705]
[1750127592215,0.04176689,106750.0,106740.0,0.23719705]
[1750127592429,0.06050128,106750.0,106740.0,0.39639705]
[1750127592639,0.05113395,106750.0,106740.0,0.39639705]
[1750127593597,0.0605011,106750.0,106740.0,0.39639705]
[1750127593813,0.05113386,106750.0,106740.0,0.39639705]
[1750127594026,0.0605011,106750.0,106740.0,0.39639705]
[1750127594489,0.06050101,106750.0,106740.0,0.39639705]
[1750127594725,0.05113386,106750.0,106740.0,0.39639705]
[1750127594929,0.06050101,106750.0,106740.0,0.39639705]
[1750127595154,0.05113386,106750.0,106740.0,0.39639705]
[1750127595600,0.0324,106750.0,106740.0,0.39639705]
[1750127595788,0.05033307,106760.0,106750.0,0.2154556]
[1750127596070,0.05326035,106760.0,106750.0,0.2154556]
[1750127596301,0.05325991,106760.0,106750.0,0.2154556]
[1750127597490,0.0316,106760.0,106750.0,0.3746556]
[1750127597696,0.39909601,106770.0,106760.0,0.21543542]
[1750127597897,0.38973053,106770.0,106760.0,0.21543542]
[1750127598177,0.05909601,106770.0,106760.0,0.21543542]
[1750127598416,0.06202298,106770.0,106760.0,0.21543542]
[1750127598680,0.08075456,106770.0,106760.0,0.21543542]
[1750127598923,0.07138995,106770.0,106760.0,0.2154356]
[1750127599150,0.250343,106770.0,106760.0,0.2154356]
[1750127599360,0.24105028,106770.0,106760.0,0.20606924]
[1750127599597,0.2290027,106760.0,106750.0,0.02]
[1750127599818,0.2290027,106760.0,106750.0,0.36528889]
[1750127600258,0.02810154,106750.0,106740.0,0.21546055]
[1750127600475,0.08096389,106750.0,106740.0,0.38402858]
[1750127600693,0.25895062,106750.0,106740.0,0.37466116]
[1750127600909,0.25602319,106750.0,106740.0,0.36529296]
[1750127601151,0.24665604,106750.0,106740.0,0.37466134]
[1750127601360,0.24665604,106750.0,106740.0,0.36529305]
[1750127601790,0.24665604,106750.0,106740.0,0.20709305]
[1750127602032,0.24665604,106750.0,106740.0,0.36629305]
[1750127602276,0.24665604,106750.0,106740.0,0.37566117]
[1750127602699,0.24665604,106750.0,106740.0,0.37766117]
[1750127603997,0.05930242,106750.0,106740.0,0.38702911]
[1750127604214,0.24958347,106750.0,106740.0,0.36829305]
[1750127604437,0.25602372,106750.0,106740.0,0.37766125]
[1750127604628,0.25602372,106750.0,106740.0,0.38702937]
[1750127604914,0.04993483,106750.0,106740.0,0.39639731]
[1750127605126,0.05286226,106750.0,106740.0,0.39639731]
[1750127605337,0.06222985,106750.0,106740.0,0.39639731]
[1750127605867,0.05286226,106750.0,106740.0,0.39639731]
[1750127606083,0.04993483,106750.0,106740.0,0.39639731]
[1750127606299,0.05286226,106750.0,106740.0,0.39639731]
[1750127606523,0.24021588,106750.0,106740.0,0.38702937]
[1750127606750,0.24665604,106750.0,106740.0,0.3963974]
[1750127606985,0.04993483,106750.0,106740.0,0.39639679]
[1750127607207,0.05286226,106750.0,106740.0,0.39639679]
[1750127607394,0.06019943,106760.0,106750.0,0.20608854]
[1750127607682,0.24753595,106760.0,106750.0,0.19672121]
[1750127607912,0.24753595,106760.0,106750.0,0.20608871]
[1750127608127,0.00936733,106750.0,106740.0,0.63812089]
[1750127608344,0.00936724,106750.0,106740.0,0.37565967]
[1750127608553,0.00936724,106750.0,106740.0,0.37465967]
[1750127608786,0.03102923,106750.0,106740.0,0.36529226]
[1750127609009,0.0719962,106750.0,106740.0,0.38402876]
[1750127609241,0.07199603,106750.0,106740.0,0.38402876]
[1750127609499,0.08136353,106750.0,106740.0,0.38602876]
[1750127609719,0.07199603,106750.0,106740.0,0.38602876]
[1750127609941,0.08136344,106750.0,106740.0,0.38602876]
[1750127610156,0.07199603,106750.0,106740.0,0.38602876]
[1750127610375,0.06262861,106750.0,106740.0,0.38602876]
[1750127610590,0.06262861,106750.0,106740.0,0.38702876]
[1750127611017,0.07199594,106750.0,106740.0,0.38702876]
[1750127611289,0.08136344,106750.0,106740.0,0.38702876]
[1750127611507,0.08136406,106750.0,106740.0,0.38702876]
[1750127613152,0.07199647,106750.0,106740.0,0.38702876]
[1750127613577,0.26871777,106750.0,106740.0,0.21846109]
[1750127613785,0.07843672,106750.0,106740.0,0.38698903]
[1750127614002,0.08136415,106750.0,106740.0,0.38698912]
[1750127614300,0.25935071,106750.0,106740.0,0.22782912]
[1750127614527,0.25935071,106750.0,106740.0,0.003]
[1750127614528,0.97126333,106750.0,106740.0,0.003]
[1750127614775,0.68847141,106750.0,106740.0,0.003]
[1750127615028,0.94035461,106750.0,106740.0,0.003]
[1750127615506,0.94035461,106750.0,106740.0,0.001]
[1750127616874,0.89703461,106750.0,106740.0,0.001]
[1750127617079,0.22753965,106740.0,106730.0,1.35090636]
[1750127617318,0.22753965,106740.0,106730.0,0.9856596]
[1750127617529,0.48834722,106740.0,106730.0,0.9856596]
[1750127617743,0.48834722,106740.0,106730.0,1.1447796]
[1750127617945,0.22753965,106740.0,106730.0,1.1447796]
[1750127618168,1.17247855,106740.0,106730.0,0.97628945]
[1750127618377,1.19479858,106740.0,106730.0,0.97728945]
[1750127618595,1.19479858,106740.0,106730.0,0.9669193]
[1750127619023,1.19579858,106740.0,106730.0,0.95754915]
[1750127619231,1.19479858,106740.0,106730.0,0.95754915]
[1750127619451,1.19979858,106740.0,106730.0,0.94917744]
[1750127619878,1.24311858,106740.0,106730.0,0.93980573]
[1750127620295,1.24311858,106740.0,106730.0,0.93043402]
[1750127620500,1.16888986,106740.0,106730.0,0.93043402]
[1750127620744,1.16888986,106740.0,106730.0,0.92106231]
[1750127621174,1.17088986,106740.0,106730.0,0.9116906]
[1750127622477,0.94617694,106740.0,106730.0,0.9116906]
[1750127622764,1.14861694,106740.0,106730.0,0.9116906]
[1750127624004,0.88780937,106740.0,106730.0,0.9116906]
[1750127624195,0.94617694,106740.0,106730.0,0.9116906]
[1750127624425,0.98949694,106740.0,106730.0,0.9116906]
[1750127624652,0.23458676,106740.0,106730.0,0.9116906]
[1750127624874,0.57458676,106740.0,106730.0,0.9116906]
[1750127627144,0.57458676,106740.0,106730.0,0.92106003]
[1750127628216,0.57458676,106740.0,106730.0,0.9116906]
[1750127629720,0.55908676,106740.0,106730.0,1.11781802]
[1750127629927,0.55908676,106740.0,106730.0,0.9116906]
[1750127630568,0.57448676,106740.0,106730.0,0.9116906]
[1750127631395,0.57448676,106740.0,106730.0,1.0707706]
[1750127634106,0.83529433,106740.0,106730.0,1.0707706]
[1750127635067,0.57448676,106740.0,106730.0,1.0707706]
[1750127635936,0.57448676,106740.0,106730.0,1.08014003]
[1750127636585,0.57448676,106740.0,106730.0,1.0707706]
[1750127636998,0.7831638,106740.0,106730.0,1.0707706]
[1750127637848,0.77379533,106740.0,106730.0,1.08014003]
[1750127638055,0.74309533,106740.0,106730.0,1.26752876]
[1750127638306,0.77479533,106740.0,106730.0,0.9116906]
[1750127638517,0.77479533,106740.0,106730.0,1.0707306]
[1750127639961,0.77479533,106740.0,106730.0,1.08010003]
[1750127640165,0.77479533,106740.0,106730.0,1.0707306]
[1750127640774,0.77479533,106740.0,106730.0,1.0706906]
[1750127642107,0.77479533,106740.0,106730.0,1.27681793]
[1750127642530,0.77479533,106740.0,106730.0,1.26744867]
[1750127643462,0.77479533,106740.0,106730.0,1.0706906]
[1750127644488,0.77479533,106740.0,106730.0,1.08006003]
[1750127644700,0.77479533,106740.0,106730.0,1.2768181]
[1750127645766,0.58742415,106740.0,106730.0,1.28618727]
[1750127645977,0.58382894,106740.0,106730.0,1.29555618]
[1750127646190,0.03515119,106740.0,106730.0,1.304925]
[1750127646420,0.42475985,106740.0,106730.0,1.0706906]
[1750127646625,0.43823209,106740.0,106730.0,1.08005994]
[1750127646848,0.45383209,106740.0,106730.0,0.9116906]
[1750127647064,0.65314084,106740.0,106730.0,1.0706506]
[1750127647281,0.4444638,106740.0,106730.0,1.0706506]
[1750127647489,0.4444638,106740.0,106730.0,1.08002003]
[1750127648460,0.4444638,106740.0,106730.0,0.9116906]
[1750127648691,0.4444638,106740.0,106730.0,1.0706506]
[1750127649481,0.4444638,106740.0,106730.0,1.08002003]
[1750127649732,0.23578676,106740.0,106730.0,1.2767781]
[1750127649934,0.4444638,106740.0,106730.0,1.2767781]
[1750127650369,0.4444638,106740.0,106730.0,1.28614736]
[1750127650766,0.4444638,106740.0,106730.0,1.29551653]
[1750127650975,0.4444638,106740.0,106730.0,1.30488561]
[1750127651387,0.4444638,106740.0,106730.0,1.29551653]
[1750127652605,0.4444638,106740.0,106730.0,1.14592561]
[1750127652826,0.4444638,106740.0,106730.0,1.28610736]
[1750127653067,0.4444638,106740.0,106730.0,1.2767381]
[1750127653289,0.4444638,106740.0,106730.0,1.07998003]
[1750127653492,0.4444638,106740.0,106730.0,1.0706106]
[1750127653712,0.4444638,106740.0,106730.0,0.9116906]
[1750127653918,1.02996102,106740.0,106730.0,0.9116906]
[1750127654131,1.28512278,106740.0,106730.0,0.9116906]
[1750127655528,1.31293785,106740.0,106730.0,0.9116906]
[1750127657607,1.28512278,106740.0,106730.0,0.9116906]
[1750127658241,1.77842278,106740.0,106730.0,0.9116906]
[1750127658956,1.82150278,106740.0,106730.0,0.9116906]
[1750127663059,2.01946278,106740.0,106730.0,0.90231678]
[1750127663307,2.38914631,106740.0,106730.0,0.49582896]
[1750127663528,2.15010411,106740.0,106730.0,0.48645514]
[1750127663746,2.14338707,106740.0,106730.0,0.48645514]
[1750127663961,2.14338707,106740.0,106730.0,0.47708132]
[1750127664184,2.14338707,106740.0,106730.0,0.4677075]
[1750127664382,2.21638707,106740.0,106730.0,0.4667075]
[1750127664672,2.43006411,106740.0,106730.0,0.45833157]
[1750127664899,2.43906411,106740.0,106730.0,0.45833157]
[1750127665126,2.43906411,106740.0,106730.0,0.40107596]
[1750127665127,7.62761331,106740.0,106730.0,0.40107596]
[1750127665357,7.62853922,106740.0,106730.0,0.11006817]
[1750127665573,7.61279824,106740.0,106730.0,0.09546817]
[1750127665785,7.61979824,106740.0,106730.0,0.03921256]
[1750127666002,7.61079824,106740.0,106730.0,0.03821256]
[1750127666221,0.20620427,106690.0,106680.0,0.01]
[1750127666434,0.45800131,106690.0,106680.0,0.0253]
[1750127666668,0.45800131,106690.0,106680.0,0.01]
[1750127666890,0.90878392,106690.0,106680.0,0.01]
[1750127667133,0.89776392,106690.0,106680.0,0.01]
[1750127667357,0.87464688,106690.0,106680.0,0.01]
[1750127667575,1.08337099,106690.0,106680.0,0.01]
[1750127668036,1.10872339,106690.0,106680.0,0.01]
[1750127668261,0.74120635,106690.0,106680.0,0.01]
[1750127668531,0.90676339,106690.0,106680.0,0.01]
[1750127669182,1.10872339,106690.0,106680.0,0.01]
[1750127670263,1.13723881,106690.0,106680.0,0.01]
[1750127670477,1.13723881,106690.0,106680.0,0.011]
[1750127670690,1.13623881,106690.0,106680.0,0.011]
[1750127671134,1.13923881,106690.0,106680.0,0.012]
[1750127671355,0.92227881,106690.0,106680.0,0.012]
[1750127671571,1.12423881,106690.0,106680.0,0.012]
[1750127671794,1.14063881,106690.0,106680.0,0.012]
[1750127674673,1.12423881,106690.0,106680.0,0.012]
[1750127674939,0.89986177,106690.0,106680.0,0.0272]
[1750127675155,0.89986177,106690.0,106680.0,0.012]
[1750127675371,1.10853881,106690.0,106680.0,0.012]
[1750127676257,0.89990177,106690.0,106680.0,0.0277]
[1750127677123,0.69790177,106690.0,106680.0,0.0277]
[1750127677345,0.23776676,106690.0,106680.0,0.05307382]
[1750127677554,0.60214148,106690.0,106680.0,0.0437]
[1750127677765,0.26214148,106690.0,106680.0,0.0437]
[1750127678200,0.60214148,106690.0,106680.0,0.0437]
[1750127678650,0.60214148,106690.0,106680.0,0.0277]
[1750127679513,0.92160113,106690.0,106680.0,0.012]
[1750127680626,0.71292409,106690.0,106680.0,0.012]
[1750127680836,0.71292409,106690.0,106680.0,0.0273]
[1750127680837,0.92160113,106690.0,106680.0,0.0273]
[1750127681044,0.92160113,106690.0,106680.0,0.012]
[1750127681295,0.87848113,106690.0,106680.0,0.012]
[1750127681551,0.92160113,106690.0,106680.0,0.012]
[1750127681790,0.95290113,106690.0,106680.0,0.012]